Cogmind - Beta 17.1 @@@ ROGUE MODE // 2026.08.29 @ 20:45:02 Player: Godsword Result: Self-destructed Performance ------------- Evolutions (5) 2500 Regions Visited (6) 1200 Robots Destroyed (67) 335 Value Destroyed (2333) 2333 Prototype IDs (8) 160 Alien Tech Used (0) 0 Bonus (82) 82 TOTAL SCORE: 6610 Bonus ------- High Alert Combat Kills 82 Cogmind --------- Core Integrity 600/1000 Matter 119/300 Energy 86/100 System Corruption 9% Temperature Cool (0) Movement Hovering (101) Ox1 Location -5/Factory Parts ------- > --- POWER (1) -------- (None) > --- PROPULSION (6) --- Hover Unit Aerolev Unit Cooled Gravmag System > --- UTILITY (7) ------ Large Storage Unit Improved Targeting Computer Target Analyzer Improved Target Analyzer Improved Target Analyzer Core Analyzer > --- WEAPON (3) ------- Gauss Rifle Gauss Rifle Powered Hammer > --- INVENTORY (15) --- Improved Deuterium Engine F-cell Engine Backup Propulsion I Advanced Heat Sink Advanced Weight Redist. System Machine Analyzer Advanced Recoil Stabilizer Transmission Jammer Light Armor Plating Hardened Light Armor Plating Peak State ------------ > --- POWER ------------ F-cell Engine > --- PROPULSION ------- Aerolev Unit Antigrav System Antigrav System Linear Gravjet Cooled Gravmag System Combat Gravmag System > --- UTILITY ---------- Large Storage Unit Improved Targeting Computer Target Analyzer Improved Target Analyzer Improved Target Analyzer Core Analyzer Improved Medium Armor Plating > --- WEAPON ----------- Hypervelocity Gauss Rifle Improved Light Cannon Powered Hammer > --- INVENTORY -------- Improved Deuterium Engine Micro Fission Core Hover Unit Hover Unit Backup Propulsion I Advanced Heat Sink Advanced Weight Redist. System Advanced Recoil Stabilizer Transmission Jammer Light Armor Plating Hardened Light Armor Plating [Rating: 79] Favorites ----------- Power Improved Deuterium Engine Engine Improved Deuterium Engine Power Core Micro Fission Core Propulsion Aerolev Unit Wheel Wheel Hover Unit Aerolev Unit Flight Unit Improved Flight Unit Utility Large Storage Unit Device Structural Scanner Storage Large Storage Unit Processor Targeting Computer Protection Improved Medium Armor Plating Weapon Improved Light Cannon Energy Gun Particle Gun Energy Cannon Particle Cannon Ballistic Gun Hypervelocity Gauss Rifle Ballistic Cannon Improved Light Cannon Launcher Missile Launcher Impact Weapon Powered Hammer Build | -11 -10 -9 -8 -7 -6 -5 ------- Run | Yrd Mat Mat Mat Fac Fac Fac Slots Evolved 10 | . . 2 2 2 2 2 Power . | . . . . . . . Propulsion 4 | . . . 2 1 1 . Utility 5 | . . 1 . 1 1 2 Weapon 1 | . . 1 . . . . Parts Attached 67 | . 8 14 11 4 8 22 Power 8 | . . 2 2 1 1 2 Engine 7 | . . 2 2 1 1 1 Core 1 | . . . . . . 1 Reactor . | . . . . . . . Propulsion 22 | . 1 5 8 . . 8 Treads . | . . . . . . . Leg . | . . . . . . . Wheel 4 | . 1 2 1 . . . Hover 17 | . . 2 7 . . 8 Flight 1 | . . 1 . . . . Utility 21 | . 3 4 . 1 5 8 Device 7 | . 1 3 . . 1 2 Storage 3 | . 1 . . . 1 1 Processor 8 | . 1 1 . 1 1 4 Hackware . | . . . . . . . Protection 3 | . . . . . 2 1 Artifact . | . . . . . . . Weapon 16 | . 4 3 1 2 2 4 Energy Gun 2 | . 1 . . 1 . . Energy Cannon 1 | . . 1 . . . . Ballistic Gun 4 | . . . . . 1 3 Ballistic Cannon 6 | . 3 1 . 1 1 . Launcher 2 | . . 1 1 . . . Special Weapon . | . . . . . . . Impact Weapon 1 | . . . . . . 1 Slashing Weapon . | . . . . . . . Piercing Weapon . | . . . . . . . Special Melee Weapon . | . . . . . . . Unidentified Prototypes 8 | . 1 1 2 . 1 3 Parts Lost 30 | . . 3 4 4 . 19 Power 4 | . . 1 1 1 . 1 Propulsion 15 | . . 1 2 1 . 11 Utility 4 | . . . 1 . . 3 Weapon 7 | . . 1 . 2 . 4 Highest Loss Streak 10 | . . 3 3 2 . 10 To Critical Strikes 1 | . . 1 . . . . Average Backups 12 | . 6 13 14 14 14 14 Power . | . . . . . . 1 Propulsion 3 | . . 3 3 4 3 4 Utility 6 | . 3 5 7 8 8 6 Weapon 2 | . 3 3 2 2 1 1 Tool/Special . | . . . . . . . Unused Backups 14 | . 1 3 3 1 . 6 Power 2 | . . . 1 . . 1 Propulsion . | . . . . . . . Utility 9 | . 1 2 . 1 . 5 Weapon 3 | . . 1 2 . . . Tool/Special . | . . . . . . . Average Slot Usage (%) 83 | . 50 78 95 86 94 97 Engine 4 | . . 4 8 6 6 4 Wheel 6 | . 9 10 13 . . . Hover 20 | . . 3 20 37 40 34 Device 4 | . 2 4 7 7 3 3 Storage 7 | . 8 11 9 7 6 5 Processor 17 | . 13 17 9 14 19 27 Energy Cannon 1 | . . 7 . . . . Ballistic Gun 2 | . . . . . . 8 Ballistic Cannon 12 | . 15 17 18 10 7 3 Launcher 1 | . . 1 7 . . . Peak Build Rating 79 | . 9 16 28 37 43 79 Average Rating 30 | . 6 12 21 31 39 64 On Entrance 18 | . . 9 16 26 36 43 Avg Prop Armor Cover (%) 4 | . . 4 5 2 . 13 Naked Turns 5 | . 5 . . . . . Heaviest Build 57 | . 28 36 40 41 49 57 Greatest Support 65 | 3 10 26 32 48 46 65 Greatest Overweight (x) 9 | . 2 9 2 1 1 1 Average Overweight (x) . | . . 1 . . . . Largest Inventory Capacity 15 | 5 15 15 15 15 15 15 Average Capacity 14 | 5 11 15 15 15 15 15 Most Carried 15 | . 9 15 15 15 15 15 Average Carried 12 | . 6 13 14 14 14 14 Final Capacity 15 | 5 15 15 15 15 15 15 Final Carried 15 | . 9 15 15 15 15 10 Class Distribution -------------------- 53% | Mutant 34% | Gunner 6% | Sprinter Dominant Class ---------------- Mutant | -10/Materials Gunner | -9/Materials Gunner | -8/Materials Mutant | -7/Factory Mutant | -6/Factory Mutant | -5/Factory Resources | -11 -10 -9 -8 -7 -6 -5 ----------- Run | Yrd Mat Mat Mat Fac Fac Fac Matter Collected 2548 | 200 401 358 412 117 208 852 Remotely . | . . . . . . . Salvage Created 2490 | . 146 295 479 190 85 1295 Parts 128 | . 19 19 23 6 1 60 Haulers Intercepted 3 | . 1 . 1 . 1 . Recyclers Shooed 2 | . . 1 . 1 . . Parts Field Recycled . | . . . . . . . Retrieved Matter . | . . . . . . . Parts Self-Destructed . | . . . . . . . Prevented . | . . . . . . . Parts Restored . | . . . . . . . Kills | -11 -10 -9 -8 -7 -6 -5 ------- Run | Yrd Mat Mat Mat Fac Fac Fac Combat Hostiles Destroyed 47 | . 6 8 10 4 . 19 Guns 12 | . . . . . . 12 Cannons 31 | . 6 8 8 3 . 6 AOE 4 | . . . 2 1 . 1 Classes Destroyed 13 | . 5 3 2 1 . 2 Worker 3 | . . . 1 . . 2 Builder 3 | . 1 . . 1 . 1 Tunneler 1 | . 1 . . . . . Hauler 3 | . 1 . 1 . 1 . Recycler 4 | . . 1 1 1 . 1 Operator 1 | . . . . 1 . . Watcher 5 | . . 2 1 . . 2 Swarmer 11 | . 3 4 . . . 4 Grunt 18 | . 3 . 6 3 . 6 Brawler 1 | . . . 1 . . . Sentry 11 | . . 4 3 1 . 3 Hunter 2 | . . . . . . 2 Programmer 4 | . . . . . . 4 Best Kill Streak 6 | . 4 4 4 4 1 6 Combat Bots Only 6 | . 3 4 3 3 . 6 Max Kills in Single Turn 2 | . 1 1 1 1 1 2 Gunslinging . | . . . . . . . Exploded 1 | . . . 1 1 . 1 Melee . | . . . . . . . Uniques/NPCs Destroyed . | . . . . . . . Combat | -11 -10 -9 -8 -7 -6 -5 -------- Run | Yrd Mat Mat Mat Fac Fac Fac Hostile Shots Fired 345 | . 38 68 36 74 . 129 Missed 114 | . 15 21 10 35 . 33 Hits 231 | . 23 47 26 39 . 96 Melee 1 | . . . 1 . . . Projectile 230 | . 23 47 25 39 . 96 Critical Strikes 9 | . . 2 . . . 7 Damage Taken 3903 | . 252 466 400 557 . 2228 Core 728 | . 75 109 60 84 . 400 Absorbed by Shields . | . . . . . . . Core Remaining (%) 86 | 100 70 72 89 88 100 . Volleys Fired 160 | . 18 24 28 26 3 61 Largest 3 | . 2 3 3 2 3 3 Hottest 138 | . 66 134 102 105 138 106 Shots Fired 340 | . 36 59 59 36 9 141 Gun 109 | . . . . 1 3 105 Cannon 228 | . 36 59 56 35 6 36 Launcher 3 | . . . 3 . . . Special . | . . . . . . . Kinetic 314 | . 36 40 56 35 6 141 Thermal 23 | . . 19 . 1 3 . Explosive 3 | . . . 3 . . . Electromagnetic . | . . . . . . . Robot Hit Streak 12 | . 6 8 12 9 12 9 Robot Miss Streak 4 | . 4 4 2 1 1 3 Penetration Max 2 | . . . . . . 2 Secondary Targets . | . . . . . . . Shots Hit Robots 214 | . 18 32 38 26 8 92 Core Hits 101 | . 10 12 22 10 3 44 Critical Kills 13 | . . . . . . 13 Critical Parts Destroyed 14 | . . . . . . 14 Critical Strikes 39 | . . 1 3 1 2 32 Burn 1 | . . . . . 1 . Destroy 26 | . . . . . . 26 Blast 11 | . . 1 3 1 1 5 Smash 1 | . . . . . . 1 Melee Attacks 12 | . . . . . . 12 Impact 12 | . . . . . . 12 Slashing . | . . . . . . . Piercing . | . . . . . . . Sneak Attacks 3 | . . . . . . 3 Combat Hostiles . | . . . . . . . Follow-up Attacks . | . . . . . . . Damage Inflicted 4743 | . 428 665 981 787 184 1698 Guns 630 | . . . . . 28 602 Cannons 3239 | . 428 665 773 550 156 667 Explosions 543 | . . . 208 237 . 98 Melee 331 | . . . . . . 331 Ramming . | . . . . . . . Kinetic 3613 | . 428 437 773 550 156 1269 Thermal 591 | . . 228 . 237 28 98 Explosive 208 | . . . 208 . . . Electromagnetic . | . . . . . . . Impact 331 | . . . . . . 331 Slashing . | . . . . . . . Piercing . | . . . . . . . Highest Corruption 9 | . . . . . 3 9 Average Corruption 4 | . . . . . 2 5 Corruption Purged 3 | . . . . . 3 . Corruption Blocked . | . . . . . . . Effects 6 | . . . . . 1 5 Message Errors 1 | . . . . . . 1 Matter Fused 2 | . . . . . 1 1 Data Loss (minor) 1 | . . . . . . 1 Data Loss (major) 1 | . . . . . . 1 Alerts 1 | . . . . . . 1 Overload Shots . | . . . . . . . Overflow Damage 330 | . . 6 . 119 . 205 Projectiles 22 | . . 6 . 15 . 1 Explosions 147 | . . . . 104 . 43 Melee 161 | . . . . . . 161 Knockbacks 22 | . 2 3 1 4 . 12 Impact 2 | . . . . . . 2 Kinetic 20 | . 2 3 1 4 . 10 Secondary . | . . . . . . . Self-Inflicted Damage 234 | . . . . 173 . 61 Shots 3 | . . . . 2 . 1 Rammed . | . . . . . . . Targets Rammed . | . . . . . . . Kicked . | . . . . . . . Crushed . | . . . . . . . Highest Temperature 302 | . 12 302 21 77 225 240 Average Temperature 99 | . 6 129 10 32 115 112 Received Heat Transfer 675 | . 78 90 162 156 . 189 Effects 3 | . . 3 . . . . Energy Bleed 1 | . . 1 . . . . Interference 2 | . . 2 . . . . Siege Activations . | . . . . . . . Martial Activations . | . . . . . . . Shielding Activations . | . . . . . . . Robots Disrupted . | . . . . . . . Combat Hostiles . | . . . . . . . Robots Corrupted 2 | . . . . . . 2 Combat Hostiles . | . . . . . . . Parts Fried 4 | . . . . . . 4 Impact Corruptions 5 | . . . . . . 5 Robots Melted . | . . . . . . . Combat Hostiles . | . . . . . . . Parts Melted . | . . . . . . . Heat Transferred 755 | . . 407 . 150 148 50 Parts Sabotaged . | . . . . . . . Parts Stolen . | . . . . . . . Parts Stripped . | . . . . . . . Power Chain Reactions . | . . . . . . . Alert | -11 -10 -9 -8 -7 -6 -5 ------- Run | Yrd Mat Mat Mat Fac Fac Fac Maximum Alert Level 2 | . . . . . . 2 Low Security (%) 90 | 100 100 100 100 100 100 65 Level 1 6 | . . . . . . 25 Level 2 2 | . . . . . . 9 Level 3 . | . . . . . . . Level 4 . | . . . . . . . Level 5 . | . . . . . . . High Security . | . . . . . . . Max Security . | . . . . . . . Peak Influence 440 | . 86 134 162 174 77 440 Initial 77 | . . 8 39 69 77 1 Average 84 | . 22 41 101 79 39 160 Influence Increases 1894 | . 193 262 368 240 7 824 Destroy 0b10 Robot/C 940 | . 120 160 200 80 . 380 Destroy 0b10 Robot/NC 100 | . 15 15 20 15 5 30 Destroy Leader 256 | . 32 54 54 20 2 94 Successful Hack 65 | . 22 11 . 6 . 26 Disable Machine 135 | . . . 15 45 . 75 Destroy Structure 203 | . 4 7 34 44 . 114 Partial Spotted 60 | . . 15 . 15 . 30 Lose Combat Pursuer 135 | . . . 45 15 . 75 Influence Decreases 1518 | . 172 189 309 234 162 452 Entered New Map 237 | . . 13 55 84 82 3 Time Decay 945 | . 126 156 214 110 80 259 Lost Part 290 | . . 20 40 40 . 190 Purge Threat 46 | . 46 . . . . . Squads Dispatched 11 | . 1 . 3 1 . 6 Investigation . | . . . . . . . Extermination 3 | . . . . . . 3 Reinforcement 6 | . 1 . 1 1 . 3 Assault . | . . . . . . . Garrison 2 | . . . 2 . . . Intercept . | . . . . . . . Searches Triggered . | . . . . . . . Construction Impeded 1 | . . . . . . 1 Haulers Reinforced . | . . . . . . . Active Scanning Responses . | . . . . . . . Cargo Convoy Interrupts . | . . . . . . . Stealth | -11 -10 -9 -8 -7 -6 -5 --------- Run | Yrd Mat Mat Mat Fac Fac Fac Distress Signals 1 | . . . . . . 1 Communications Jammed . | . . . . . . . Distress Signals . | . . . . . . . Times Spotted 71 | . 7 11 16 7 . 30 Peak Tracking Total 5 | . 3 4 5 3 . 4 Tactical Retreats 6 | . . . 2 1 . 3 Traps | -11 -10 -9 -8 -7 -6 -5 ------- Run | Yrd Mat Mat Mat Fac Fac Fac Traps Triggered 4 | . 1 . . . . 3 Indirectly . | . . . . . . . Trap Hack Attempts . | . . . . . . . Triggered . | . . . . . . . Disarmed . | . . . . . . . Reprogrammed . | . . . . . . . Reused . | . . . . . . . Traps Extracted . | . . . . . . . Installed . | . . . . . . . Triggered . | . . . . . . . Machines | -11 -10 -9 -8 -7 -6 -5 ---------- Run | Yrd Mat Mat Mat Fac Fac Fac Machines Disabled 9 | . . . 1 3 . 5 Max in Single Turn 3 | . . . 1 3 . 3 Machines Repaired . | . . . . . . . Machines Dismantled . | . . . . . . . Machines Sabotaged . | . . . . . . . Overloaded Fab Kills . | . . . . . . . Hacking | -11 -10 -9 -8 -7 -6 -5 --------- Run | Yrd Mat Mat Mat Fac Fac Fac Machines Accessed 14 | . 3 5 1 2 . 3 Terminals 7 | . 3 2 1 1 . . Fabricators 1 | . . . . . . 1 Repair Stations 3 | . . 2 . 1 . . Recycling Units . | . . . . . . . Scanalyzers 2 | . . 1 . . . 1 Garrison Access 1 | . . . . . . 1 Total Hacks 41 | . 10 14 1 7 . 9 Successful 15 | . 5 6 . 1 . 3 Failed 25 | . 5 7 1 6 . 6 Catastrophic . | . . . . . . . Database Lockouts 1 | . . 1 . . . . Manual 8 | . 6 . . 2 . . Terminals 20 | . 10 7 1 2 . . Fabricators 1 | . . . . . . 1 Repair Stations 9 | . . 4 . 5 . . Recycling Units . | . . . . . . . Scanalyzers 8 | . . 3 . . . 5 Garrison Access 3 | . . . . . . 3 Terminal Hacks 6 | . 3 3 . . . . Record 1 | . 1 . . . . . Branch Access Points 1 | . . 1 . . . . Machine Index 1 | . . 1 . . . . Unreport Threat 1 | . 1 . . . . . Zone Layout 2 | . 1 1 . . . . Fabricator Hacks . | . . . . . . . Repair Station Hacks 2 | . . 1 . 1 . . Refit 2 | . . 1 . 1 . . Recycling Unit Hacks . | . . . . . . . Scanalyzer 4 | . . 2 . . . 2 Retrieve Study 4 | . . 2 . . . 2 Garrison Access Hacks 1 | . . . . . . 1 Unlock Access 1 | . . . . . . 1 Unauthorized Hacks 2 | . 2 . . . . . Terminals 2 | . 2 . . . . . Assimilate 2 | . 2 . . . . . Fabricators . | . . . . . . . Repair Stations . | . . . . . . . Recycling Units . | . . . . . . . Scanalyzers . | . . . . . . . Garrison Access . | . . . . . . . Data Cores Recovered . | . . . . . . . Used . | . . . . . . . Hacking Detections 11 | . 3 2 1 2 . 3 Full Trace Events . | . . . . . . . Feedback Events . | . . . . . . . Feedback Blocked . | . . . . . . . Robot Schematics Acquired . | . . . . . . . Robots Built . | . . . . . . . Authchips . | . . . . . . . Time . | . . . . . . . Total Robot Build Rating . | . . . . . . . Part Schematics Acquired . | . . . . . . . Parts Built . | . . . . . . . Authchips . | . . . . . . . Time . | . . . . . . . Total Part Build Rating . | . . . . . . . Part Studies Acquired 4 | . . 2 . . . 2 Parts Repaired . | . . . . . . . Time . | . . . . . . . Parts Recycled . | . . . . . . . Recycled Matter . | . . . . . . . Retrieved Matter . | . . . . . . . Retrieved Components . | . . . . . . . Parts Scanalyzed . | . . . . . . . Part Schematics Acquired . | . . . . . . . Parts Damaged . | . . . . . . . Bothacking | -11 -10 -9 -8 -7 -6 -5 ------------ Run | Yrd Mat Mat Mat Fac Fac Fac Used RIF Installer . | . . . . . . . Robots Hacked . | . . . . . . . Non-combat . | . . . . . . . Combat . | . . . . . . . Robot Hacks Applied . | . . . . . . . Relay Couplers Released . | . . . . . . . Fabnet Peak Effective % . | . . . . . . . Robots Rewired . | . . . . . . . Allies Hacked . | . . . . . . . Hacks Repelled . | . . . . . . . Allies | -11 -10 -9 -8 -7 -6 -5 -------- Run | Yrd Mat Mat Mat Fac Fac Fac Total Allies 1 | . 1 . . . . . Largest Group 1 | . 1 1 . . . . Highest-Rated Group 10 | . 10 10 . . . . Highest-Rated Ally 10 | . 10 10 . . . . Total Orders 1 | . 1 . . . . . FOLLOW 1 | . 1 . . . . . Ally Attacks . | . . . . . . . Total Damage . | . . . . . . . Kills . | . . . . . . . Allies Corrupted . | . . . . . . . Allies Melted . | . . . . . . . Intel | -11 -10 -9 -8 -7 -6 -5 ------- Run | Yrd Mat Mat Mat Fac Fac Fac Active Infowar (turns) 1274 | . 456 335 31 189 . 263 Optics 714 | . 456 258 . . . . Terrain 97 | . 97 . . . . . Structural 559 | . . 77 31 189 . 262 Jamming 2 | . . . . . . 2 Robot Analysis Total . | . . . . . . . Derelict Logs Recovered . | . . . . . . . Drone Launches . | . . . . . . . Drone Recoveries . | . . . . . . . Exploration | -11 -10 -9 -8 -7 -6 -5 ------------- Run | Yrd Mat Mat Mat Fac Fac Fac Turns Passed 2468 | 11 461 469 446 233 169 679 Spaces Moved 2462 | 23 473 278 383 297 109 899 Core 281 | 23 257 1 . . . . Treads . | . . . . . . . Legs . | . . . . . . . Wheels 693 | . 216 242 235 . . . Hover 1488 | . . 35 148 297 109 899 Flight . | . . . . . . . Fastest Speed 30 | 50 50 105 38 38 35 30 Average Speed 60 | 50 76 117 82 39 41 35 Slowest Speed 500 | 50 110 500 130 102 95 102 Overloaded Moves . | . . . . . . . Propulsion Burnouts . | . . . . . . . Robots Hopped . | . . . . . . . Potential Cave-ins . | . . . . . . . Cave-ins Triggered . | . . . . . . . Exploration Rate (%) 22 | 3 40 33 38 10 3 28 Regions Visited 6 Branch Regions . Pre-discovered Areas . | . . . . . . . Known Exits Taken . | . . . . . . . Unknown Exits Taken 6 | 1 1 1 1 1 1 . Scrap Searched . | . . . . . . . Spaces Dug 8 | . . . . . . 8 Terrain Destroyed 157 | . 3 6 29 56 . 63 Melee 8 | . . . . . . 8 Projectile 10 | . 3 6 1 . . . AOE 137 | . . . 28 56 . 53 Terrain Rammed . | . . . . . . . Walls Destroyed . | . . . . . . . Machines Disabled . | . . . . . . . Actions | -11 -10 -9 -8 -7 -6 -5 --------- Run | Yrd Mat Mat Mat Fac Fac Fac Total 3086 | 22 537 375 453 374 223 1102 Wait 253 | . 23 32 6 38 94 60 Move 2456 | 22 472 277 382 296 108 899 Hop . | . . . . . . . Pick Up 54 | . 10 10 10 4 4 16 Fast Attach 37 | . 7 7 4 2 2 15 Attach 34 | . 2 6 5 3 4 14 Detach 10 | . 2 7 . . . 1 Swap 35 | . . 5 8 3 5 14 Drop 35 | . 3 7 10 2 3 10 Fire 160 | . 18 24 28 26 3 61 Melee 12 | . . . . . . 12 Ram . | . . . . . . . Kick . | . . . . . . . Crush . | . . . . . . . Escape Stasis . | . . . . . . . Rewire . | . . . . . . . Trap . | . . . . . . . Miscellaneous . | . . . . . . . Route ------- -11/Scrapyard -10/Materials (discovered 2 exits: *Mat / [*Min]) -9/Materials (discovered 3 exits: *Mat / Min x2) -8/Materials -7/Factory -6/Factory -5/Factory (discovered 1 exit: Gar) History --------- Turn | Location | Event 4 | -11/Scrapyard | Discovered new exit (range 15) 12 | -11/Scrapyard | Entered Materials 91 | -10/Materials | Discovered new exit (range 17) 167 | -10/Materials | Discovered new exit (range 12) 310 | -10/Materials | Build established: Mutant 473 | -10/Materials | Entered another Materials area 473 | -9/Materials | Accompanied by 1 ally 473 | -9/Materials | Evolved 2 slots: Utility x1, Weapon x1 498 | -9/Materials | Identified exit to Mines 720 | -9/Materials | Lost 3 parts (1p1n1w) 911 | -9/Materials | Central database locked down 927 | -9/Materials | Discovered new exit (range 16) 942 | -9/Materials | Entered another Materials area 942 | -8/Materials | Evolved 2 slots: Propulsion x2 1027 | -8/Materials | Build established: Gunner 1288 | -8/Materials | Garrison activated, responded to threat 1332 | -8/Materials | Lost 3 parts (1p1n1u) 1380 | -8/Materials | Discovered new exit (range 16) 1388 | -8/Materials | Entered Factory 1388 | -7/Factory | Evolved 2 slots: Propulsion x1, Utility x1 1602 | -7/Factory | Discovered new exit (range 15) 1619 | -7/Factory | Build established: Mutant 1621 | -7/Factory | Entered another Factory area 1621 | -6/Factory | Evolved 2 slots: Propulsion x1, Utility x1 1635 | -6/Factory | Discovered new exit (range 11) 1790 | -6/Factory | Entered another Factory area 1790 | -5/Factory | Evolved 2 slots: Utility x2 1865 | -5/Factory | Identified exit to Garrison 2391 | -5/Factory | Lost 3 parts (1n1u1w) 2469 | -5/Factory | Self-destructed Last Messages --------------- 02454_ Slug penetrates H-71 Marshal. 02454_ Slug penetrates Door. 02457_ Slug penetrates H-71 Marshal. 02458_ Mic. Fission Core destroyed. 02458_ Critical hit (Blast). 02458_ Knocked back. 02459_ System corrupted: Matter fused (-5). 02459_ Acquired 7 matter. 02459_ K-01 Serf collects debris. 02460_ Knocked back. 02462_ K-01 Serf collects debris. 02462_ Penetrated by Slug. 02462_ Knocked back. 02463_ Slug penetrates H-71 Marshal. 02463_ Linear Gravjet+ destroyed. 02464_ Cmb. Gravmag System destroyed. 02465_ K-01 Serf collects debris. 02466_ Slug penetrates P-70 Sage. 02466_ Hover Unit+ destroyed. 02468_ Penetrated by Slug. Map ----- +----------------------------------------------------+ | ????????????????????## ##" """ ## # """ # | | ?????????????????????# ## ## # # | | ?????????????????????# ############ # # | | ?????????????????????# # # | | ?????????????????????# + ] # | | ?????????????????????# ####### | | ?????????????????????# ######### ##?????#! | | ?????????????????????# #???????# #??????# | | ?????????????????????# #???????# #??????# | | ?????????????????????# #???????# #?????## | | ?????????????????????# #???????# #?????#" | | ?????????????????????# #???????# #????#### | | ?????????????????????# #??????? | | ?????????????????????# * #???????? | | #????????????????????# % #????????? | | #????????????????????# [ k #?????????????? | | ????????????????????# pp#?????????????? % | | ????????????????????# = #??????????????? = | | ???????????????????# #?????????????? % | | ???????????????????# #???????????? ?####### | | ?????????????????# #?????????? ???????? | | ##?????????????????# #???????? ??????? | | ##????????????????## ####### ??????? | | ##????????????????#; #?????? | | ##????????????????## % #?????? | | ##????????????????#; @ H "?????? | | ???????????????????## % u #?????? | | ??????????????????# #?????? | | ??????????????????##;;#####+###k ??????? | | ????????????????????## ?????????? ??????? | | ##?????????????????????# ??????????? #???????? | | ##?????????????????????# ????????????? #???????? | | ##?????????????????????# ????????????????????????? | | ##?????????????????????# ????????????????????????? | | ##?????????????????????#???????????????????####### | | ##?????????????????????????????????????? ######### | | ##????????????????????????????????## ? #### | | ##????????????????????????????????## | | ?????????????????????????????????## | | ?????????????????????????????????## =!! """"" | | ?????????????????????????????????## =!! "" F" | | ?????????????????????????????????## !!! "" "" | | ??????????????????????############# | | ??????????????????? ???############# | | ?????????????????? """"" """""" | | ?????????????????? ""T"" """""" | | ?????????????????" """""" | | ????????????????? """""" | | ?????????????????" | | ?????????????????" | +----------------------------------------------------+ Best States ------------- Heat Dissipation 45 Energy Generation 19 Energy Capacity 500 Matter Stores 300 Matter Capacity 300 Sight Range 18 Terrain Scan Range 14 Terrain Scan Density 10 Jamming Range 12 Additional Mass Support 9 Armor Coverage 225 Evasion (%) 59 Targeting Accuracy 14 Target Analysis 9 Core Analysis 6 Item Schematics ----------------- None Robot Schematics ------------------ None Fabricated ------------ Nothing Repaired ---------- Nothing Studied --------- Imp. Hover Unit | -9/Materials | Hacked Hover Unit | -9/Materials | Hacked Linear Gravjet | -5/Factory | Hacked Imp. Deuterium Engine | -5/Factory | Hacked Alien Tech Used ----------------- None Achievements -------------- Fancy Inventory Challenges ------------ None Game ------ Seed PoweredDerelictWyrmplate Manual? 0 Play Time 00:56:08 Cumulative 5.2 hours Start 2026.08.29 @ 14:50:30 End 2026.08.29 @ 20:45:02 Sessions 3 Manual Loads 0 Difficulty Rogue Special Mode None Game No. 16 Rogue 16 Adventurer 0 Explorer 0 Win Type - Total 0 Types 0/0/0/0/0/0/0/0/0/0 Lore% 8 Gallery% 14 Achievement% 41 Wizard Run 0 Options --------- Layout 2 ASCII 0 Keyboard 0 Movement Mouse Keybinds 0 Fullscreen 1 Font 16/SmallcapsGlow Map View 50x49 Zoom Use 0% Tactical HUD 1 Map Filters NONE Filters NONE Steam SD RUN: a8322410-20a2-4d96-831b-aa3139cb9643